fUSD/lending_fUSD_20240902
["ID","MTS","AMOUNT","RATE_DAILY","PERIOD"]
[337008294,1725307848473,-687.95,0.00019178,2]
[337008295,1725307848483,-687.95,0.00019178,2]
[337008296,1725307848493,-687.95,0.00019178,2]
[337008297,1725307848503,-500.0,0.00019178,2]
[337008298,1725307848512,-688.07535561,0.00019178,2]
[337008299,1725307848522,-500.0,0.00019178,2]
[337008300,1725307848531,-500.0,0.00019178,2]
[337008301,1725307848540,-500.0,0.00019178,2]
[337008302,1725307848551,-500.0,0.00019178,2]
[337008303,1725307848561,-500.0,0.00019178,2]
[337008304,1725307848570,-500.0,0.00019178,2]
[337008305,1725307848581,-500.0,0.00019178,2]
[337008306,1725307848592,-500.0,0.00019178,2]
[337008307,1725307848605,-500.0,0.00019178,2]
[337008308,1725307848617,-527.40063333,0.00019178,2]
[337008309,1725307848630,-267.23385716,0.00019178,2]
[337008310,1725307848642,-500.0,0.00019178,2]
[337008311,1725307848654,-500.0,0.00019178,2]
[337008312,1725307848666,-287.66706037,0.00019178,2]
[337008313,1725307848678,-178.470638,0.00019178,2]
[337008314,1725307848688,-553.35245459,0.00019186,2]
[337008315,1725307848698,-1000.0,0.0001921,2]
[337008316,1725307848709,-210.0,0.0001927,2]
[337008317,1725307848721,-215.0,0.0001927,2]
[337008318,1725307848732,-201.0,0.0001927,2]
[337008319,1725307848742,-15709.576292,0.0001938,2]
[337008320,1725307848753,-273.05461,0.0001941,2]
[337008321,1725307848765,-273.05461,0.0001941,2]
[337008322,1725307848777,-151.0,0.0001941,2]
[337008323,1725307848788,-151.0,0.0001941,2]
[337008324,1725307848801,-17827.9727638,0.000195,2]
[337008325,1725307848812,-151.0,0.000195,2]
[337008326,1725307848824,-151.0,0.000195,2]
[337008327,1725307848836,-151.0,0.000195,2]
[337008328,1725307848848,-286.91566,0.000195,2]
[337008329,1725307848860,-1529.935775,0.000195,2]
[337008330,1725307848872,-286.915662,0.000195,2]
[337008331,1725307848883,-1157.248209,0.000195,2]
[337008332,1725307848893,-1529.935775,0.000195,2]
[337008333,1725307848905,-1157.248209,0.000195,2]
[337008334,1725307848916,-210.0,0.0001951,2]
[337008335,1725307848927,-215.0,0.0001951,2]
[337008336,1725307848937,-201.0,0.0001951,2]
[337008337,1725307848948,-151.0,0.00019513,2]
[337008338,1725307848959,-168.054539,0.00019513,2]
[337008339,1725307848971,-168.054541,0.00019513,2]
[337008340,1725307848982,-151.0,0.00019513,2]
[337008341,1725307848993,-151.0,0.00019513,2]
[337008342,1725307849004,-505.539221,0.00019513,2]
[337008343,1725307849014,-408.363098,0.00019513,2]
[337008344,1725307849024,-505.539221,0.00019513,2]
[337008345,1725307849034,-408.363098,0.00019513,2]
[337008346,1725307849044,-151.0,0.00019513,2]
[337008347,1725307849055,-151.0,0.00019513,2]
[337008348,1725307849066,-156.772005,0.00019513,2]
[337008349,1725307849076,-15709.576292,0.00019613,2]
[337008350,1725307849088,-5854.0,0.00019654,2]
[337008351,1725307849101,-3511.266,0.00019654,2]
[337008352,1725307849112,-150.0,0.00019654,2]
[337008353,1725307849124,-1102.619,0.00019654,2]
[337008354,1725307849136,-13463.0,0.00019654,2]
[337008355,1725307849147,-435.124,0.00019654,2]
[337008356,1725307849159,-346.93,0.00019676,2]
[337008357,1725307849170,-500.0,0.00019726,2]
[337008358,1725307849182,-500.0,0.00019726,2]
[337008359,1725307849194,-150.0,0.00019735,2]
[337008360,1725307849205,-150.0,0.00019744,2]
[337008361,1725307849216,-210.0,0.0001976,2]
[337008362,1725307849227,-215.0,0.0001976,2]
[337008363,1725307849238,-201.0,0.0001976,2]
[337008364,1725307849249,-150.0,0.00019793,2]
[337008365,1725307849259,-150.5068822,0.00019795,2]
[337008366,1725307849269,-4396.65974335,0.00019796,2]
[337008367,1725307849279,-671.0,0.000198,9]
[337008368,1725307849289,-600.0,0.000198,7]
[337008369,1725307849301,-320.0,0.000198,5]
[337008370,1725307849312,-150.0,0.00019802,2]
[337008371,1725307849324,-1500.0,0.00019849,2]
[337008372,1725307849335,-330.31,0.00019876,2]
[337008373,1725307849347,-128568.46173184,0.0001988,5]
[337008374,1725307849356,-273.05461,0.0001988,2]
[337008375,1725307849366,-273.05461,0.0001988,2]
[337008376,1725307849376,-151.0,0.0001988,2]
[337008377,1725307849388,-151.0,0.0001988,2]
[337008378,1725307849399,-151.0,0.0001988,2]
[337008379,1725307849410,-286.818032,0.0001988,2]
[337008380,1725307849422,-151.0,0.0001988,2]
[337008381,1725307849433,-505.539221,0.0001988,2]
[337008382,1725307849446,-408.363098,0.0001988,2]
[337008383,1725307849457,-505.539224,0.0001988,2]
[337008384,1725307849467,-408.3631,0.0001988,2]
[337008385,1725307849478,-151.0,0.0001988,2]
[337008386,1725307849488,-151.0,0.0001988,2]
[337008387,1725307849498,-600.0,0.000199,7]
[337008388,1725307849510,-553.35245459,0.000199,2]
[337008389,1725307849521,-192.93409799,0.000199,2]
[337008390,1725307849531,-150.0,0.00019957,2]
[337008391,1725307849542,-273.05461,0.00019986,2]
[337008392,1725307849554,-273.05461,0.00019986,2]
[337008393,1725307849566,-273.05461,0.00019986,2]
[337008394,1725307849577,-273.054604,0.00019986,2]
[337008395,1725307849592,-151.0,0.00019986,2]
[337008396,1725307849602,-163.027638,0.00019986,2]
[337008397,1725307849612,-20176.4814976,0.00019986,2]
[337008398,1725307849623,-19025.2265183,0.00019986,2]
[337008399,1725307849634,-17873.9715389,0.00019986,2]
[337008400,1725307849645,-16722.7165595,0.00019986,2]
[337008401,1725307849655,-151.0,0.00019986,2]
[337008402,1725307849668,-15571.4615801,0.00019986,2]
[337008403,1725307849679,-2475.5098465,0.00019986,2]
[337008404,1725307849690,-2343.086782,0.00019986,2]
[337008405,1725307849701,-2210.6637174,0.00019986,2]
[337008406,1725307849711,-2078.2406529,0.00019986,2]
[337008407,1725307849722,-1945.8175884,0.00019986,2]
[337008408,1725307849733,-150.0,0.0001999,2]
[337008409,1725307849744,-927.0073208,0.00019996,2]
[337008410,1725307849755,-876.9681713,0.00019996,2]
[337008411,1725307849765,-826.9290218,0.00019996,2]
[337008412,1725307849776,-776.8898723,0.00019996,2]
[337008413,1725307849786,-726.8507228,0.00019996,2]
[337008414,1725307849797,-676.8115733,0.00019996,2]
[337008415,1725307849808,-978829.54191554,0.0002,15]
[337008416,1725307849819,-1194.5220253,0.0002,2]
[337008417,1725307849830,-1000.0,0.0002,5]
[337008418,1725307849840,-746.29,0.0002,5]
[337008419,1725307849852,-40152.79846897,0.0002,3]
[337008420,1725307849862,-3004.0,0.0002,10]
[337008421,1725307849872,-150.0,0.0002,2]
[337008422,1725307849883,-294.62969239,0.0002,2]
[337008423,1725307849893,-746.43728603,0.0002,2]
[337008424,1725307849904,-26667.6608773,0.0002,2]
[337008425,1725307849914,-3784.78304736,0.0002,2]
[337008426,1725307849925,-6653.0,0.0002,2]
[337008427,1725307849936,-3950.0,0.0002,2]
[337008428,1725307849946,-24720.17601502,0.0002,2]
[337008429,1725307849957,-3922.55178567,0.0002,2]
[337008430,1725307849967,-400.0,0.0002,2]
[337008431,1725307849978,-1776.1238484,0.0002,10]
[337008432,1725307849988,-23858.82,0.0002,2]
[337008433,1725307849999,-1238.0,0.0002,15]
[337008434,1725307850009,-2426.0,0.0002,2]
[337008435,1725307850020,-502.82,0.0002,8]
[337008436,1725307850031,-1449364.42041134,0.0002,15]
[337008437,1725307850207,-412.39,0.0002,15]
[337008438,1725307850220,-508.47077684,0.0002,15]
[337008439,1725307850233,-93887.53637394,0.0002,15]
[337008440,1725307850246,-21033.57546785,0.0002,15]
[337008441,1725307850258,-19472.43189373,0.0002,15]
[337008442,1725307850271,-45868.85415105,0.0002,15]
[337008443,1725307850284,-4824.75458289,0.0002,15]
[337008444,1725307850326,-2862.11144977,0.0002,15]
[337008445,1725307850338,-3506.12,0.0002,15]
[337008446,1725307850350,-441.78039394,0.0002,15]
[337008447,1725307850362,-313.505555,0.0002,15]
[337008448,1725307851563,-40202.10488403,0.0002,15]
[337008449,1725307851574,-333.59523142,0.0002,15]
[337008450,1725307851587,-745.08646596,0.0002,15]
[337008451,1725307851599,-24149.19161144,0.0002,15]
[337008452,1725307851609,-630.12224999,0.0002,15]
[337008453,1725307851622,-1044.24366106,0.0002,15]
[337008454,1725307851633,-304.74896181,0.0002,15]
[337008455,1725307851645,-394.59,0.0002,15]
[337008456,1725307851657,-6180.65784,0.0002,15]
[337008457,1725307851671,-3476.63696484,0.0002,15]
[337008458,1725307851683,-865.26308682,0.0002,15]
[337008459,1725307851693,-6016.2,0.0002,15]
[337008460,1725307851705,-5988.50674018,0.0002,15]
[337008461,1725307851716,-2270.12136,0.0002,15]
[337008462,1725307851727,-5925.69599542,0.0002,15]
[337008463,1725307851739,-258.105,0.0002,15]
[337008464,1725307851751,-1061.28,0.0002,15]
[337008465,1725307851762,-15384.41003735,0.0002,15]
[337008466,1725307851796,-546.0,0.0002,2]
[337008467,1725307851805,-47345.75421239,0.0002,15]
[337008468,1725307851817,-17853.34084675,0.0002,15]
[337008469,1725307851829,-4883.9047737,0.0002,15]
[337008470,1725307851841,-1449.96550931,0.0002,15]
[337008471,1725307851852,-90102.38135672,0.0002,15]
[337008472,1725307851863,-591.5645175,0.0002,15]
[337008473,1725307851874,-284.08641326,0.0002,15]
[337008474,1725307851886,-4281.0519054,0.0002,15]
[337008475,1725307851897,-474.23960442,0.0002,15]
[337008476,1725307851916,-908.94469596,0.0002,15]
[337008477,1725307851927,-132033.35882538,0.0002,15]
[337008478,1725307851939,-1412.93673964,0.0002,15]
[337008479,1725307851949,-1140.33466279,0.0002,15]
[337008480,1725307851960,-4068.391154,0.0002,15]
[337008481,1725308105237,805.0,0.00027,120]
[337008482,1725308194096,299.09,0.00025223,120]
[337008483,1725308320142,550.0,0.00011,2]
[337008484,1725308356669,154.41,0.00010959,2]
[337008485,1725308879193,164.37647516,0.0001,2]
[337008494,1725308928316,164.51,0.00010959,2]
[337008507,1725309031765,-865.39221263,0.00014689,2]
[337008508,1725309031775,-79.81258459,0.0001469,2]
[337008509,1725309031819,-1030.58021541,0.0001469,2]
[337008510,1725309031829,-150.0,0.00014789,2]
[337008511,1725309031838,-259.85863922,0.0001479,2]
[337008512,1725309031849,-706.11031433,0.0001479,2]
[337008513,1725309031928,-627.85298596,0.0001479,2]
[337008514,1725309031984,-14201.48249161,0.0001479,2]
[337008515,1725309031995,-10174.28661659,0.0001479,2]
[337008523,1725309037867,-4461.84790807,0.0001479,2]
[337008524,1725309037880,-5533.35431226,0.0001479,2]
[337008525,1725309037893,-9953.85793196,0.0001479,2]
[337008527,1725309037902,-8310.05706804,0.0001479,2]
[337008528,1725309037924,-264.24,0.0001479,2]
[337008529,1725309037935,-279.36,0.0001479,2]
[337008530,1725309038033,-540.65357155,0.0001479,2]
[337008531,1725309038045,-27584.05971406,0.0001479,2]
[337008532,1725309038057,-1364.83123837,0.0001479,2]
[337008533,1725309038068,-10893.79720798,0.0001479,2]
[337008534,1725309038078,-311.84543466,0.000149,2]
[337008535,1725309038089,-1758.66389734,0.000149,2]
[337008536,1725309038098,-500.0,0.00014973,2]
[337008537,1725309038107,-151.76,0.0001499,2]
[337008538,1725309038117,-151.76,0.0001499,2]
[337008539,1725309038127,-151.76,0.0001499,2]
[337008540,1725309038136,-151.76,0.0001499,2]
[337008541,1725309038145,-151.76,0.0001499,2]
[337008542,1725309038155,-151.76,0.0001499,2]
[337008543,1725309038164,-151.76,0.0001499,2]
[337008544,1725309038174,-151.76,0.0001499,2]
[337008545,1725309038185,-151.76,0.0001499,2]
[337008546,1725309038196,-151.76,0.0001499,2]
[337008547,1725309038206,-151.76,0.0001499,2]
[337008548,1725309038215,-151.76,0.0001499,2]
[337008549,1725309038226,-151.76,0.0001499,2]
[337008550,1725309038235,-151.76,0.0001499,2]
[337008551,1725309038245,-11891.78085473,0.00015,2]
[337008552,1725309038256,-4392.91305409,0.00015,2]
[337008553,1725309038269,-741.01448344,0.00015,2]
[337008555,1725309038281,-1051.74850456,0.00015,2]
[337008557,1725309038293,-2939.9999999,0.00015,2]
[337008558,1725309038304,-567.02253439,0.00015,2]
[337008559,1725309038315,-1266.25068988,0.00015,2]
[337008560,1725309038326,-464.27999997,0.00015,2]
[337008561,1725309038337,-15814.54260165,0.00015,2]
[337008562,1725309038349,-1698.02186945,0.00015,2]
[337008563,1725309038360,-762.69359376,0.00015,2]
[337008564,1725309038372,-475.14527595,0.00015,2]
[337008577,1725309039919,-338.0226125,0.00015,2]
[337008579,1725309039930,-837.74750378,0.00015,2]
[337008581,1725309039941,-4285.81638443,0.00015,2]
[337008583,1725309039952,-7496.04043626,0.00015,2]
[337008587,1725309039974,-587.72819476,0.00015,2]
[337008589,1725309039985,-320.10297877,0.00015,2]
[337008590,1725309040031,-535.85788251,0.00015,2]
[337008591,1725309040042,-1534.61932229,0.00015,2]
[337008592,1725309040053,-1785.82599457,0.00015,2]
[337008593,1725309040065,-19004.07780853,0.00015,2]
[337008594,1725309040076,-1086.34670665,0.00015,2]
[337008595,1725309040089,-11992.0362,0.00015,2]
[337008596,1725309040101,-1502.36748721,0.00015,2]
[337008597,1725309040112,-2837.74696614,0.00015,2]
[337008598,1725309040123,-1460.1327122,0.00015,2]
[337008599,1725309040133,-312.004999,0.00015,2]
[337008600,1725309040145,-11418.47941151,0.00015,2]
[337008601,1725309040156,-2826.92060331,0.00015,2]
[337008602,1725309040168,-3031.43850912,0.00015,2]
[337008603,1725309040203,-27089.17785513,0.00015,2]
[337008604,1725309040214,-1617.592005,0.00015,2]
[337008605,1725309040227,-1363.68834929,0.00015,2]
[337008606,1725309040238,-2023.404,0.00015,2]
[337008607,1725309040249,-1952.46287706,0.00015,2]
[337008608,1725309040261,-1102.35287265,0.00015,2]
[337008609,1725309040273,-2806.8,0.00015,2]
[337008610,1725309040423,-359.58943198,0.00015,2]
[337008611,1725309040435,-643.23488832,0.00015,2]
[337008612,1725309040447,-68963.51653075,0.00015,2]
[337008613,1725309040459,-12932.8391651,0.00015,2]
[337008614,1725309040471,-19357.1500304,0.00015,2]
[337008615,1725309040483,-18527.41837375,0.00015,2]
[337008616,1725309040495,-1031.00172718,0.00015,2]
[337008617,1725309040506,-1818.9,0.00015,2]
[337008618,1725309040523,-4866.53947244,0.00015,2]
[337008619,1725309040536,-13765.41875351,0.00015,2]
[337008620,1725309040547,-1352.08206824,0.00015,2]
[337008628,1725309042862,-682.39886699,0.00015,2]
[337008629,1725309042875,-8457.3627112,0.00015,2]
[337008630,1725309042888,-21986.27470492,0.00015,2]
[337008631,1725309042900,-10877.31968114,0.00015,2]
[337008632,1725309042911,-332.4976,0.00015,2]
[337008633,1725309042922,-5971.9,0.00015,2]
[337008634,1725309042934,-6855.90067227,0.00015,2]
[337008652,1725309043654,-361.01292754,0.00015,2]
[337008653,1725309043667,-34105.91719769,0.00015,2]
[337008654,1725309043678,-705.62952227,0.00015,2]
[337008655,1725309043690,-1648.73563273,0.00015,2]
[337008656,1725309043699,-174078.03722217,0.00015,2]
[337008657,1725309043710,-528408.00000042,0.00015,2]
[337008658,1725309043721,-1201.87353666,0.00015,2]
[337008659,1725309043732,-781.874423,0.00015,2]
[337008660,1725309043743,-564.29514693,0.00015,2]
[337008661,1725309043755,-532.35328105,0.00015,2]
[337008662,1725309043768,-2939.32172658,0.00015,2]
[337008663,1725309043778,-4491.72001492,0.00015,2]
[337008664,1725309043791,-564.19094589,0.00015,2]
[337008665,1725309043804,-1206.02157757,0.00015,2]
[337008666,1725309043818,-5242.74940921,0.00015,2]
[337008667,1725309043831,-651.33802245,0.00015,2]
[337008668,1725309043844,-370.19267968,0.00015,2]
[337008669,1725309043856,-1325.20799028,0.00015,2]
[337008670,1725309043871,-22420.08937347,0.00015,2]
[337008671,1725309043883,-585.395015,0.00015,2]
[337008672,1725309043894,-6654.157102,0.00015,2]
[337008673,1725309044064,-1738.02113,0.00015,2]
[337008674,1725309044079,-2627.76022133,0.00015,2]
[337008675,1725309044092,-330.5,0.00015,2]
[337008676,1725309044105,-1385.902562,0.00015,2]
[337008677,1725309044117,-5983.9,0.00015,2]
[337008678,1725309044129,-1058.55765,0.00015,2]
[337008679,1725309044142,-1232.8790104,0.00015,2]
[337008680,1725309044155,-39601.49456148,0.00015,2]
[337008681,1725309045967,-3457.94421187,0.00015,2]
[337008682,1725309045980,-1384.9877526,0.00015,2]
[337008683,1725309045994,-6653.2513662,0.00015,2]
[337008684,1725309046006,-746.22474826,0.00015,2]
[337008685,1725309046019,-1280.09897153,0.00015,2]
[337008686,1725309046031,-6676.43119304,0.00015,2]
[337008687,1725309046065,-444.3350225,0.00015,2]
[337008688,1725309046079,-8212.42891304,0.00015,2]
[337008689,1725309046091,-2630.82659408,0.00015,2]
[337008690,1725309046105,-1303.17693193,0.00015,2]
[337008691,1725309046119,-48751.96682396,0.00015,2]
[337008692,1725309046131,-6154.01807628,0.00015,2]
[337008693,1725309046144,-266.39857557,0.00015,2]
[337008694,1725309046157,-501.32446068,0.00015,2]
[337008695,1725309046169,-2457.38273895,0.00015,2]
[337008696,1725309046182,-371.08009368,0.00015,2]
[337008697,1725309046198,-4826.33672719,0.00015,2]
[337008699,1725309046211,-50180.900616,0.00015,2]
[337008700,1725309046223,-1308.51120063,0.00015,2]
[337008701,1725309046236,-2238.27476078,0.00015,2]
[337008702,1725309046249,-2087.08,0.00015,2]
[337008703,1725309046264,-1865.23497668,0.00015,2]
[337008704,1725309046278,-1992.35843948,0.00015,2]
[337008705,1725309046292,-520.42458624,0.00015,2]
[337008706,1725309046306,-1499.90008,0.00015,2]
[337008707,1725309046319,-493.09011844,0.00015,2]
[337008708,1725309046332,-3987.91705982,0.00015,2]
[337008709,1725309046344,-765.67486631,0.00015,2]
[337008710,1725309046357,-324.95834368,0.00015,2]
[337008711,1725309046371,-500.0,0.00015,2]
[337008712,1725309046383,-984.31139991,0.00015,2]
[337008713,1725309046396,-3187.19048631,0.00015,2]
[337008714,1725309046409,-1644.15644672,0.00015,2]
[337008715,1725309046421,-23938.32502418,0.00015,2]
[337008716,1725309046436,-2049.27708235,0.00015,2]
[337008717,1725309046448,-3651.45990221,0.00015,2]
[337008718,1725309046460,-1434.79165165,0.00015,2]
[337008719,1725309046472,-569.62893995,0.00015,2]
[337008720,1725309046483,-2540.48000006,0.00015,2]
[337008722,1725309418944,170.96,0.00010959,2]
[337008723,1725310122543,550.0,0.00011,2]
[337008724,1725310231916,-300.0,0.0001428,2]
[337008725,1725310231926,-6700.17256487,0.00014281,7]
[337008726,1725310231938,-576.09917672,0.00014281,7]
[337008727,1725310231947,-1255.00720479,0.00014281,7]
[337008728,1725310231957,-478.69,0.0001479,2]
[337008729,1725310231966,-178.11099824,0.000149,2]
[337008730,1725310231975,-172.00474581,0.000149,2]
[337008731,1725310231985,-236.45909106,0.000149,2]
[337008732,1725310231994,-325.56050951,0.000149,2]
[337008733,1725310232004,-279.35,0.00014944,2]
[337008734,1725310232013,-500.0,0.00014973,2]
[337008735,1725310232022,-1060.07702425,0.0001498,2]
[337008736,1725310232031,-150.0,0.00014989,2]
[337008737,1725310232041,-27661.18,0.0001499,2]
[337008738,1725310232051,-12218.47,0.0001499,2]
[337008739,1725310232060,-499.99,0.0001499,2]
[337008740,1725310232069,-151.85,0.0001499,2]
[337008741,1725310232078,-228280.52359424,0.00015,2]
[337008742,1725310232089,-508.47198714,0.00015,2]
[337008743,1725310232112,-1096.03155311,0.00015,2]
[337008744,1725310232128,-418.90217464,0.00015,2]
[337008745,1725310232139,-19201.65365862,0.00015,2]
[337008746,1725310232151,-341.42630098,0.00015,2]
[337008760,1725310238096,-1804.2,0.00015,2]
[337008761,1725310238254,-544.37084928,0.00015,2]
[337008767,1725310240181,-4008.28539649,0.00015,2]
[337008768,1725310240288,-32991.37224146,0.00015,2]
[337008806,1725310244101,-12139.74711895,0.00015,2]
[337008807,1725310244112,-27780.1466528,0.00015,2]
[337008814,1725310246031,-2055.07612643,0.00015,2]
[337008815,1725310246087,-32805.568176,0.00015,2]
[337008819,1725310246471,-329.968208,0.00015,2]
[337008820,1725310540657,192.87,0.00010959,2]
[337008822,1725310858222,306743.0,0.00025,60]
[337008823,1725311123023,154.47,0.00010959,2]
[337008825,1725311280156,494.04,0.0001184,2]
[337008831,1725311432114,-1268.44968028,0.00013625,2]
[337008832,1725311432124,-603.91,0.00013725,2]
[337008833,1725311432133,-357.43,0.00013725,2]
[337008834,1725311432143,-175.96,0.00013733,2]
[337008835,1725311432153,-174.25,0.00013758,2]
[337008836,1725311432166,-250.0,0.00013838,2]
[337008837,1725311432176,-300.0,0.00013891,2]
[337008838,1725311432186,-3246.90031972,0.00013892,2]
[337008839,1725311432226,-18758.35968028,0.00013892,2]
[337008840,1725311432237,-250.0,0.00013892,2]
[337008841,1725311432247,-500.87919228,0.00013957,2]
[337008842,1725311432258,-1499.12080772,0.00013957,2]
[337008843,1725311432268,-494.04,0.00014104,2]
[337008844,1725311432277,-546.88,0.00014167,2]
[337008845,1725311432287,-5820.94075469,0.00014181,2]
[337008846,1725311432296,-176.2380285,0.00014181,2]
[337008847,1725311432305,-482.05058612,0.00014181,2]
[337008848,1725311432317,-17.93941388,0.00014181,2]
[337008849,1725311432327,-325.56050946,0.00014181,2]
[337008850,1725311432336,-151.66,0.00014271,2]
[337008851,1725311432346,-500.0,0.00014273,2]
[337008852,1725311432355,-500.0,0.00014273,2]
[337008853,1725311432365,-5191.97707081,0.00014278,2]
[337008854,1725311432374,-150.0,0.00014279,2]
[337008855,1725311432384,-500.0,0.0001428,2]
[337008856,1725311432393,-500.0,0.0001428,2]
[337008858,1725311432402,-500.0,0.0001428,2]
[337008860,1725311432412,-199.30226172,0.0001428,2]
[337008861,1725311432422,-432.39737912,0.0001428,2]
[337008863,1725311432431,-60236.18374632,0.00014281,7]
[337008864,1725311432442,-2195.73008022,0.00014281,7]
[337008865,1725311432457,-3331.88002399,0.00014281,7]
[337008873,1725311438469,-1382.19335427,0.00014281,7]
[337008874,1725311438481,-1475.64,0.00014281,7]
[337008875,1725311438493,-591.9902,0.00014281,7]
[337008881,1725311440268,-518848.8770072,0.00014281,7]
[337008882,1725311440278,-2842.64069002,0.00014281,7]
[337008883,1725311440288,-1191.5972527,0.00014281,7]
[337008884,1725311440298,-76103.82444004,0.00014281,7]
[337008885,1725311440310,-26641.17337603,0.00014281,7]
[337008886,1725311440322,-2988.78326536,0.00014281,7]
[337008887,1725311440333,-7583.60000003,0.00014281,7]
[337008888,1725311440377,-500.0,0.0001428,2]
[337008889,1725311440386,-194.2939298,0.0001428,2]
[337008890,1725311440396,-26641.35244954,0.00014281,7]
[337008891,1725311440406,-361.78,0.00014333,2]
[337008892,1725311440417,-1000.0,0.00014414,2]
[337008893,1725311440428,-250.0,0.00014526,2]
[337008894,1725311440438,-1000.0,0.00014821,2]
[337008895,1725311440448,-150.0,0.0001485,2]
[337008896,1725311440457,-1511.47,0.0001485,2]
[337008897,1725311440467,-1850.55253,0.0001485,2]
[337008898,1725311440477,-177.63438328,0.000149,2]
[337008899,1725311440487,-171.44570036,0.000149,2]
[337008900,1725311440496,-160.36941333,0.000149,2]
[337008901,1725311440506,-226.38728976,0.000149,2]
[337008902,1725311440517,-189.55387216,0.000149,2]
[337008903,1725311440529,-157.63939404,0.000149,2]
[337008904,1725311440539,-157.35,0.00014967,2]
[337008905,1725311440551,-175.84,0.00014967,2]
[337008906,1725311440563,-160.25558805,0.00014973,2]
[337008907,1725311440573,-500.47454931,0.00014973,2]
[337008908,1725311440582,-151.66,0.0001499,2]
[337008909,1725311440592,-41535.81656648,0.00014997,2]
[337008910,1725311440601,-175.64905373,0.00015,2]
[337008911,1725311440611,-208818.1551999,0.00015,2]
[337008913,1725311440623,-24912.89410395,0.00015,2]
[337008915,1725311440636,-356.19588052,0.00015,2]
[337008917,1725311440647,-362500.6786855,0.00015,2]
[337008918,1725311440657,-19330.1768711,0.00015,2]
[337008919,1725311440670,-1490.63916087,0.00015,2]
[337008921,1725311440683,-1127.92651515,0.00015,2]
[337008923,1725311440694,-711.3485025,0.00015,2]
[337008926,1725311440707,-483.88830976,0.00015,2]
[337008928,1725311440718,-10126.12732249,0.00015,2]
[337008930,1725311440730,-10038.80724639,0.00015,2]
[337008932,1725311440744,-682.60523184,0.00015,2]
[337008935,1725311440759,-265.52153338,0.00015,2]
[337008937,1725311440770,-7164.62200804,0.00015,2]
[337008939,1725311440782,-2301.72,0.00015,2]
[337008941,1725311440794,-12927.31596729,0.00015,2]
[337008957,1725311441009,-526.11997254,0.00015,2]
[337008958,1725311441272,-211267.85391691,0.00015,2]
[337008959,1725311441283,-355.72425126,0.00015,2]
[337008960,1725311441294,-3895.58825898,0.00015,2]
[337008961,1725311441305,-8986.45537056,0.00015,2]
[337008965,1725311443205,-8739.00278943,0.00015,2]
[337008966,1725311443216,-579.35,0.00015,2]
[337008967,1725311443227,-1267.53629767,0.00015,2]
[337008968,1725311443239,-773.9542217,0.00015,2]
[337008969,1725311443265,-573.37884648,0.00015,2]
[337008976,1725311444745,-489.18296135,0.00015,2]
[337008977,1725311444756,-362.76485203,0.00015,2]
[337008978,1725311444767,-36096.65073552,0.00015,2]
[337008979,1725311444778,-9010.1475494,0.00015,2]
[337008980,1725311444788,-2558.2578458,0.00015,2]
[337008981,1725311444799,-530.05992504,0.00015,2]
[337008982,1725311444810,-5958.007393,0.00015,2]
[337008983,1725311444822,-428.15022569,0.00015,2]
[337008984,1725311444832,-2467.1499995,0.00015,2]
[337008985,1725311444843,-3172.2818176,0.00015,2]
[337008986,1725311444854,-1668.02297108,0.00015,2]
[337008987,1725311444865,-12754.46134342,0.00015,2]
[337008988,1725311444875,-242992.47263957,0.00015,2]
[337008989,1725311444886,-368.15317865,0.00015,2]
[337008990,1725311444897,-1067.81353758,0.00015,2]
[337008991,1725311444908,-455.24917089,0.00015,2]
[337008992,1725311444919,-373.5132,0.00015,2]
[337008993,1725311444934,-2285.82171714,0.00015,2]